[Event "GrandPrix_29.05"]
[Site "Chess.com"]
[Date "2020.05.29"]
[Round "6"]
[White "madamDD"]
[Black "Nuvas"]
[Result "1/2-1/2"]
[WhiteElo "2353"]
[BlackElo "2255"]
[TimeControl "600+2"]
[EndTime "12:02:15 PDT"]
[Termination "Game drawn by agreement"]

1. e4 {[%clk 0:09:38.1]} 1... c5 {[%clk 0:10:00.8]} 2. Nc3 {[%clk 0:09:37.8]}
2... Nc6 {[%clk 0:10:01.6]} 3. Bb5 {[%clk 0:09:37.7]} 3... Nd4 {[%clk
0:10:02.6]} 4. Nf3 {[%clk 0:09:38]} 4... a6 {[%clk 0:09:50]} 5. Bd3 {[%clk
0:09:37.1]} 5... g6 {[%clk 0:09:50.6]} 6. Rb1 {[%clk 0:09:31.3]} 6... Bg7 {[%clk
0:09:46]} 7. b4 {[%clk 0:09:29.5]} 7... cxb4 {[%clk 0:09:04.1]} 8. Rxb4 {[%clk
0:09:31.4]} 8... Nc6 {[%clk 0:09:05.4]} 9. Rb1 {[%clk 0:09:31.6]} 9... b5 {[%clk
0:09:06.8]} 10. Bb2 {[%clk 0:09:08.2]} 10... Nf6 {[%clk 0:09:01.9]} 11. Nd5
{[%clk 0:09:01.5]} 11... O-O {[%clk 0:09:02.7]} 12. Nxf6+ {[%clk 0:08:38.3]}
12... exf6 {[%clk 0:08:48.3]} 13. c4 {[%clk 0:08:02.7]} 13... Nb4 {[%clk
0:08:48.2]} 14. Be2 {[%clk 0:08:01.3]} 14... bxc4 {[%clk 0:08:49.4]} 15. Bxc4
{[%clk 0:07:59.4]} 15... d5 {[%clk 0:08:50.4]} 16. exd5 {[%clk 0:07:55.2]} 16...
Re8+ {[%clk 0:08:51.4]} 17. Kf1 {[%clk 0:07:52.2]} 17... Nxd5 {[%clk 0:08:28.4]}
18. Qb3 {[%clk 0:07:37]} 18... Bf5 {[%clk 0:07:24.4]} 19. Bxd5 {[%clk
0:06:55.3]} 19... Rb8 {[%clk 0:07:25.1]} 20. Bxf7+ {[%clk 0:06:31]} 20... Kh8
{[%clk 0:07:26]} 21. Qc3 {[%clk 0:04:33.6]} 21... Qd3+ {[%clk 0:04:08.4]} 22.
Qxd3 {[%clk 0:04:32.4]} 22... Bxd3+ {[%clk 0:04:10.3]} 23. Kg1 {[%clk 0:04:33]}
23... Bxb1 {[%clk 0:04:11.3]} 24. Bxe8 {[%clk 0:04:27.9]} 24... Bxa2 {[%clk
0:03:57.4]} 25. h4 {[%clk 0:03:56.4]} 25... Rxb2 {[%clk 0:03:28.3]} 26. Kh2
{[%clk 0:03:55.8]} 26... Bf8 {[%clk 0:02:30]} 27. Rc1 {[%clk 0:03:40.5]} 27...
Bd6+ {[%clk 0:02:24.4]} 28. g3 {[%clk 0:03:10.3]} 28... Bd5 {[%clk 0:02:10.1]}
29. Bc6 {[%clk 0:02:47]} 29... Bxf3 {[%clk 0:02:11.2]} 30. Bxf3 {[%clk
0:02:47.6]} 30... Rxd2 {[%clk 0:02:12.8]} 31. Kg2 {[%clk 0:02:40]} 31... Be5
{[%clk 0:02:03.6]} 32. Be4 {[%clk 0:02:03.1]} 32... a5 {[%clk 0:01:38.5]} 33.
Rc2 {[%clk 0:01:52.5]} 33... Rd4 {[%clk 0:01:39.4]} 34. Kf3 {[%clk 0:01:49.9]}
34... a4 {[%clk 0:01:37.5]} 35. Ke3 {[%clk 0:01:32.1]} 35... Rb4 {[%clk
0:01:20.3]} 36. Bd5 {[%clk 0:01:20.8]} 36... Rb5 {[%clk 0:01:06.2]} 37. Rc8+
{[%clk 0:01:10.5]} 37... Kg7 {[%clk 0:01:07.1]} 38. Rg8+ {[%clk 0:01:04.7]}
38... Kh6 {[%clk 0:01:07.5]} 39. Ke4 {[%clk 0:00:55.4]} 39... Ra5 {[%clk
0:01:08.7]} 40. Ra8 {[%clk 0:00:50.5]} 40... Rxa8 {[%clk 0:01:09.7]} 41. Bxa8
{[%clk 0:00:51.4]} 41... a3 {[%clk 0:01:11.4]} 42. Bd5 {[%clk 0:00:51.5]} 42...
Bb2 {[%clk 0:01:12.6]} 43. g4 {[%clk 0:00:47.3]} 43... Kg7 {[%clk 0:01:06]} 44.
f4 {[%clk 0:00:45.3]} 44... h6 {[%clk 0:01:01.2]} 45. f5 {[%clk 0:00:38.9]}
45... g5 {[%clk 0:01:01.6]} 46. h5 {[%clk 0:00:30.2]} 46... Kf8 {[%clk
0:01:02.7]} 47. Ba2 {[%clk 0:00:28.4]} 47... Ke7 {[%clk 0:01:04.1]} 48. Kd5
{[%clk 0:00:29.6]} 48... Be5 {[%clk 0:01:05.4]} 49. Kc6 {[%clk 0:00:27.1]} 49...
Bd6 {[%clk 0:01:05.4]} 50. Bb3 {[%clk 0:00:24.3]} 50... Bb4 {[%clk 0:01:06.7]}
51. Ba2 {[%clk 0:00:24.9]} 51... Kd8 {[%clk 0:01:07.9]} 52. Bb3 {[%clk
0:00:24.7]} 52... Kc8 {[%clk 0:01:07.2]} 53. Ba2 {[%clk 0:00:24.5]} 53... Kd8
{[%clk 0:01:08.1]} 54. Bb3 {[%clk 0:00:25]} 54... Bf8 {[%clk 0:01:04.5]} 1/2-1/2

[Event "GrandPrix_29.05"]
[Site "Chess.com"]
[Date "2020.05.29"]
[Round "6"]
[White "Saxar85"]
[Black "Lion_DL"]
[Result "1-0"]
[WhiteElo "2490"]
[BlackElo "2163"]
[TimeControl "600+2"]
[EndTime "12:02:17 PDT"]
[Termination "Saxar85 won by resignation"]

1. Nf3 {[%clk 0:09:59.9]} 1... Nf6 {[%clk 0:09:59.7]} 2. g3 {[%clk 0:09:58.3]}
2... g6 {[%clk 0:09:58.2]} 3. b3 {[%clk 0:09:58.6]} 3... Bg7 {[%clk 0:09:59.2]}
4. Bb2 {[%clk 0:09:58.1]} 4... a5 {[%clk 0:09:59.4]} 5. Bg2 {[%clk 0:09:46.9]}
5... a4 {[%clk 0:09:49.2]} 6. O-O {[%clk 0:09:45.4]} 6... O-O {[%clk 0:09:48.1]}
7. c4 {[%clk 0:09:43.9]} 7... d6 {[%clk 0:08:06.7]} 8. d4 {[%clk 0:09:41.2]}
8... Nbd7 {[%clk 0:07:46.7]} 9. Nbd2 {[%clk 0:09:26.4]} 9... e5 {[%clk
0:07:23.2]} 10. dxe5 {[%clk 0:09:07.1]} 10... Ng4 {[%clk 0:07:21.4]} 11. Qc2
{[%clk 0:08:45.8]} 11... Ngxe5 {[%clk 0:07:08.3]} 12. Nxe5 {[%clk 0:08:14.1]}
12... Nxe5 {[%clk 0:07:06.1]} 13. h3 {[%clk 0:08:13.7]} 13... Qe7 {[%clk
0:06:14.3]} 14. b4 {[%clk 0:07:59]} 14... a3 {[%clk 0:05:37.4]} 15. Bc3 {[%clk
0:07:57.3]} 15... f5 {[%clk 0:05:37]} 16. e3 {[%clk 0:07:49.8]} 16... c6 {[%clk
0:05:31.3]} 17. Rfe1 {[%clk 0:07:39.1]} 17... Be6 {[%clk 0:05:28.3]} 18. f4
{[%clk 0:07:19.9]} 18... Nd7 {[%clk 0:05:11.9]} 19. e4 {[%clk 0:07:18.8]} 19...
Qf7 {[%clk 0:04:45.8]} 20. Rac1 {[%clk 0:07:00.5]} 20... Nf6 {[%clk 0:04:02.4]}
21. e5 {[%clk 0:06:20]} 21... dxe5 {[%clk 0:04:01.9]} 22. Bxe5 {[%clk
0:06:20.3]} 22... Rad8 {[%clk 0:03:49.4]} 23. Qc3 {[%clk 0:06:16.3]} 23... Rd7
{[%clk 0:03:34.8]} 24. Nb3 {[%clk 0:05:46.4]} 24... Ne4 {[%clk 0:03:00.3]} 25.
Bxe4 {[%clk 0:05:44.6]} 25... fxe4 {[%clk 0:03:01.2]} 26. Nc5 {[%clk 0:05:15.3]}
26... Bxe5 {[%clk 0:02:47.4]} 27. Qxe5 {[%clk 0:05:13.5]} 27... Bxh3 {[%clk
0:02:12.2]} 28. Nxd7 {[%clk 0:05:03.9]} 28... Qxd7 {[%clk 0:02:14.1]} 29. Rcd1
{[%clk 0:03:46.8]} 29... Qg4 {[%clk 0:02:04.5]} 30. Kh2 {[%clk 0:03:34.4]} 30...
e3 {[%clk 0:01:17.5]} 31. Qxe3 {[%clk 0:02:33.8]} 31... Qh5 {[%clk 0:01:18.4]}
32. Kg1 {[%clk 0:02:30.5]} 32... Bg4 {[%clk 0:01:10.9]} 33. Rd2 {[%clk
0:02:30.1]} 33... Bf5 {[%clk 0:00:35.5]} 34. Rh2 {[%clk 0:01:54.8]} 34... Bh3
{[%clk 0:00:27.7]} 35. c5 {[%clk 0:01:32.5]} 35... Qf5 {[%clk 0:00:20.5]} 36.
Qb3+ {[%clk 0:01:21.5]} 36... Rf7 {[%clk 0:00:10.5]} 37. Re7 {[%clk 0:01:09.3]}
37... Bg4 {[%clk 0:00:08.1]} 38. Qxf7+ {[%clk 0:01:02]} 38... Qxf7 {[%clk
0:00:08.5]} 39. Rxf7 {[%clk 0:01:03.1]} 39... Kxf7 {[%clk 0:00:10.4]} 40. Rxh7+
{[%clk 0:01:03.7]} 40... Ke6 {[%clk 0:00:11.3]} 41. Rxb7 {[%clk 0:01:02.1]}
41... Kd5 {[%clk 0:00:12.7]} 42. Ra7 {[%clk 0:01:02.4]} 42... Kc4 {[%clk
0:00:13.5]} 43. Rxa3 {[%clk 0:01:02.7]} 43... Kxb4 {[%clk 0:00:14.8]} 44. Re3
{[%clk 0:00:54.1]} 44... Kxc5 {[%clk 0:00:16.7]} 45. Kf2 {[%clk 0:00:55]} 45...
Kb4 {[%clk 0:00:16.9]} 46. Ke1 {[%clk 0:00:53.9]} 46... c5 {[%clk 0:00:17.7]}
47. Kd2 {[%clk 0:00:54.6]} 47... c4 {[%clk 0:00:19.1]} 48. a3+ {[%clk
0:00:54.8]} 48... Ka4 {[%clk 0:00:18.1]} 49. Rc3 {[%clk 0:00:55.1]} 49... Be6
{[%clk 0:00:17.8]} 50. Ke3 {[%clk 0:00:56]} 50... Kb5 {[%clk 0:00:18.9]} 51. Kd4
{[%clk 0:00:57]} 51... Bf7 {[%clk 0:00:19.9]} 52. g4 {[%clk 0:00:57]} 1-0

[Event "GrandPrix_29.05"]
[Site "Chess.com"]
[Date "2020.05.29"]
[Round "6"]
[White "IljaJoke"]
[Black "Borsuk_Konstantin"]
[Result "1-0"]
[WhiteElo "2243"]
[BlackElo "1829"]
[TimeControl "600+2"]
[EndTime "12:02:20 PDT"]
[Termination "IljaJoke won on time"]

1. d4 {[%clk 0:10:01.9]} 1... Nf6 {[%clk 0:10:00.3]} 2. c4 {[%clk 0:10:01.8]}
2... e6 {[%clk 0:10:01.2]} 3. g3 {[%clk 0:10:01.5]} 3... Bb4+ {[%clk 0:09:51.6]}
4. Bd2 {[%clk 0:10:01.6]} 4... Qe7 {[%clk 0:09:39.3]} 5. Nf3 {[%clk 0:10:00.8]}
5... b6 {[%clk 0:09:37.9]} 6. Bg2 {[%clk 0:10:00.3]} 6... Bb7 {[%clk 0:09:38.6]}
7. O-O {[%clk 0:09:59.7]} 7... Bxd2 {[%clk 0:09:36.6]} 8. Qxd2 {[%clk
0:09:55.6]} 8... d6 {[%clk 0:09:31.1]} 9. Qc2 {[%clk 0:09:34]} 9... O-O {[%clk
0:08:31.6]} 10. Nc3 {[%clk 0:09:31]} 10... c6 {[%clk 0:07:40]} 11. e4 {[%clk
0:09:24.8]} 11... e5 {[%clk 0:07:39.5]} 12. d5 {[%clk 0:09:25.6]} 12... cxd5
{[%clk 0:07:30.9]} 13. cxd5 {[%clk 0:09:21.5]} 13... Rc8 {[%clk 0:07:21.8]} 14.
Rfc1 {[%clk 0:09:06.6]} 14... Nbd7 {[%clk 0:07:19.7]} 15. b4 {[%clk 0:09:05.4]}
15... a5 {[%clk 0:06:23.8]} 16. Qb2 {[%clk 0:08:29.8]} 16... Ba6 {[%clk
0:05:56.8]} 17. a3 {[%clk 0:08:03.5]} 17... Rc7 {[%clk 0:05:38.2]} 18. Nd2
{[%clk 0:06:55.9]} 18... Qd8 {[%clk 0:05:32.1]} 19. Nd1 {[%clk 0:06:48.7]} 19...
Rac8 {[%clk 0:05:21.9]} 20. Ne3 {[%clk 0:06:45.2]} 20... g6 {[%clk 0:05:10.4]}
21. h4 {[%clk 0:06:32.6]} 21... b5 {[%clk 0:04:21.2]} 22. Bh3 {[%clk 0:06:20.4]}
22... Rxc1+ {[%clk 0:03:47.5]} 23. Rxc1 {[%clk 0:06:19.8]} 23... Rc7 {[%clk
0:03:26.2]} 24. Rc6 {[%clk 0:06:02.1]} 24... Nb8 {[%clk 0:02:20.7]} 25. Rc3
{[%clk 0:05:11.3]} 25... axb4 {[%clk 0:02:10.7]} 26. axb4 {[%clk 0:05:10.8]}
26... Nfd7 {[%clk 0:02:00.7]} 27. Qc1 {[%clk 0:04:57.6]} 27... Rxc3 {[%clk
0:01:54.7]} 28. Qxc3 {[%clk 0:04:59.5]} 28... Nb6 {[%clk 0:01:53.9]} 29. Nb3
{[%clk 0:04:54.8]} 29... Bc8 {[%clk 0:01:39.1]} 30. Bf1 {[%clk 0:04:39.2]} 30...
Bd7 {[%clk 0:01:38.7]} 31. Na5 {[%clk 0:04:39.6]} 31... Qc8 {[%clk 0:01:34.6]}
32. Qd2 {[%clk 0:03:43.1]} 32... Na4 {[%clk 0:01:14.4]} 33. Nd1 {[%clk
0:03:10.7]} 33... Kg7 {[%clk 0:00:56.9]} 34. h5 {[%clk 0:03:11.3]} 34... f6
{[%clk 0:00:42]} 35. h6+ {[%clk 0:03:02.1]} 35... Kf7 {[%clk 0:00:41.8]} 36. f4
{[%clk 0:03:03.7]} 36... exf4 {[%clk 0:00:28.6]} 37. gxf4 {[%clk 0:03:03.9]}
37... Qc7 {[%clk 0:00:27.3]} 38. Nb3 {[%clk 0:02:54.5]} 38... Nb6 {[%clk
0:00:22.8]} 39. Nd4 {[%clk 0:02:52.2]} 39... Nc4 {[%clk 0:00:21.6]} 40. Qc3
{[%clk 0:02:52.9]} 40... Qa7 {[%clk 0:00:16.6]} 41. Nf2 {[%clk 0:02:46.6]} 41...
Qa3 {[%clk 0:00:14.8]} 42. Qxa3 {[%clk 0:01:25.4]} 42... Nxa3 {[%clk 0:00:16]}
43. Nd3 {[%clk 0:01:27.1]} 43... Nc4 {[%clk 0:00:10.6]} 44. Kf2 {[%clk
0:01:25.8]} 44... Nd2 {[%clk 0:00:11]} 45. Bg2 {[%clk 0:01:22.2]} 45... Na6
{[%clk 0:00:11.1]} 46. Ke2 {[%clk 0:01:18]} 46... Nc4 {[%clk 0:00:11]} 47. f5
{[%clk 0:01:07.7]} 47... g5 {[%clk 0:00:09.3]} 48. Bf3 {[%clk 0:01:04.6]} 48...
Ke7 {[%clk 0:00:07.6]} 49. Bh5 {[%clk 0:01:04.4]} 49... Nc7 {[%clk 0:00:07.4]}
50. Bg6 {[%clk 0:01:02.8]} 1-0

[Event "GrandPrix_29.05"]
[Site "Chess.com"]
[Date "2020.05.29"]
[Round "6"]
[White "Sergey_Krivenko"]
[Black "Forking_U"]
[Result "0-1"]
[WhiteElo "2092"]
[BlackElo "2274"]
[TimeControl "600+2"]
[EndTime "12:02:22 PDT"]
[Termination "Forking_U won by resignation"]

1. d4 {[%clk 0:10:01.9]} 1... d5 {[%clk 0:09:59.1]} 2. Bf4 {[%clk 0:10:00.3]}
2... Nf6 {[%clk 0:09:58.4]} 3. e3 {[%clk 0:10:00.5]} 3... c5 {[%clk 0:09:58.7]}
4. Nf3 {[%clk 0:09:47.8]} 4... Nc6 {[%clk 0:09:59]} 5. Nbd2 {[%clk 0:09:44.8]}
5... cxd4 {[%clk 0:09:41.8]} 6. exd4 {[%clk 0:09:43.1]} 6... Qb6 {[%clk
0:09:38.1]} 7. Nb3 {[%clk 0:09:26.9]} 7... Bf5 {[%clk 0:09:13.1]} 8. c3 {[%clk
0:09:05.5]} 8... e6 {[%clk 0:08:44]} 9. Be2 {[%clk 0:08:52.1]} 9... h6 {[%clk
0:08:28.7]} 10. O-O {[%clk 0:08:39.6]} 10... Be7 {[%clk 0:08:29.9]} 11. h3
{[%clk 0:08:04.4]} 11... O-O {[%clk 0:08:28.4]} 12. Ne5 {[%clk 0:07:17.2]} 12...
Rfc8 {[%clk 0:07:48.8]} 13. Nd3 {[%clk 0:06:13.9]} 13... Ne4 {[%clk 0:06:52]}
14. f3 {[%clk 0:05:48.8]} 14... Nd6 {[%clk 0:06:48.2]} 15. Nbc5 {[%clk
0:05:26.8]} 15... Nc4 {[%clk 0:06:36.1]} 16. b3 {[%clk 0:04:53.6]} 16... Na3
{[%clk 0:05:53.8]} 17. Qd2 {[%clk 0:04:23.7]} 17... Nb5 {[%clk 0:04:58.7]} 18.
Na4 {[%clk 0:02:59.1]} 18... Qd8 {[%clk 0:03:24.5]} 19. Ndc5 {[%clk 0:02:50.1]}
19... Nd6 {[%clk 0:03:25.5]} 20. Bxd6 {[%clk 0:02:29.3]} 20... Qxd6 {[%clk
0:03:27.4]} 21. Nxb7 {[%clk 0:02:22.8]} 21... Qg3 {[%clk 0:03:21.8]} 22. Qe1
{[%clk 0:02:18.6]} 22... Qg6 {[%clk 0:03:16.2]} 23. Kh1 {[%clk 0:02:01.4]} 23...
e5 {[%clk 0:02:43]} 24. g4 {[%clk 0:01:48.8]} 24... Bc2 {[%clk 0:02:30.5]} 25.
dxe5 {[%clk 0:01:09.7]} 25... Nxe5 {[%clk 0:02:28.2]} 26. f4 {[%clk 0:01:06.4]}
26... Nd3 {[%clk 0:02:25.9]} 27. Qd2 {[%clk 0:01:01.3]} 27... Nc5 {[%clk
0:00:55.3]} 28. Nbxc5 {[%clk 0:00:56.9]} 28... Bxc5 {[%clk 0:00:55.9]} 29. f5
{[%clk 0:00:56.9]} 29... Be4+ {[%clk 0:00:56.1]} 30. Bf3 {[%clk 0:00:53.5]}
30... Qc6 {[%clk 0:00:38.1]} 31. Nxc5 {[%clk 0:00:43]} 31... Qxc5 {[%clk
0:00:24.9]} 32. Rac1 {[%clk 0:00:38.7]} 32... a5 {[%clk 0:00:17]} 33. Bxe4
{[%clk 0:00:34.2]} 33... dxe4 {[%clk 0:00:17.8]} 34. Qd4 {[%clk 0:00:34.7]}
34... Qc6 {[%clk 0:00:10.6]} 35. Rfe1 {[%clk 0:00:31.5]} 35... Re8 {[%clk
0:00:03.8]} 36. Kg1 {[%clk 0:00:18.7]} 36... Rad8 {[%clk 0:00:03.7]} 37. Qe3
{[%clk 0:00:16.5]} 37... Rd3 {[%clk 0:00:04.4]} 38. Qxd3 {[%clk 0:00:17.1]}
38... exd3 {[%clk 0:00:05.3]} 39. Rxe8+ {[%clk 0:00:17]} 39... Qxe8 {[%clk
0:00:06.5]} 0-1

[Event "GrandPrix_29.05"]
[Site "Chess.com"]
[Date "2020.05.29"]
[Round "6"]
[White "Vazgen352"]
[Black "kirillshevchenko"]
[Result "0-1"]
[WhiteElo "2393"]
[BlackElo "2739"]
[TimeControl "600+2"]
[EndTime "12:02:23 PDT"]
[Termination "kirillshevchenko won on time"]

1. c4 {[%clk 0:10:01.6]} 1... Nf6 {[%clk 0:09:59.4]} 2. g3 {[%clk 0:10:01.3]}
2... e5 {[%clk 0:09:48.6]} 3. Bg2 {[%clk 0:10:01.5]} 3... Nc6 {[%clk 0:09:48.7]}
4. Nc3 {[%clk 0:10:01]} 4... Bc5 {[%clk 0:09:26.2]} 5. Nf3 {[%clk 0:10:01.6]}
5... d6 {[%clk 0:09:20.8]} 6. d3 {[%clk 0:09:59.3]} 6... h6 {[%clk 0:09:15.9]}
7. O-O {[%clk 0:09:58.5]} 7... O-O {[%clk 0:08:57.6]} 8. a3 {[%clk 0:09:59.7]}
8... a6 {[%clk 0:08:53.2]} 9. b4 {[%clk 0:09:58.4]} 9... Ba7 {[%clk 0:08:53.7]}
10. Bb2 {[%clk 0:10:00]} 10... Bg4 {[%clk 0:08:48]} 11. h3 {[%clk 0:09:55.2]}
11... Be6 {[%clk 0:08:41.8]} 12. Rc1 {[%clk 0:09:36.8]} 12... Qd7 {[%clk
0:08:29.5]} 13. Kh2 {[%clk 0:09:36.9]} 13... Nd4 {[%clk 0:07:56.3]} 14. Nxd4
{[%clk 0:09:25.5]} 14... exd4 {[%clk 0:07:56]} 15. Ne4 {[%clk 0:09:07.8]} 15...
Nxe4 {[%clk 0:07:47.3]} 16. dxe4 {[%clk 0:09:09.7]} 16... c5 {[%clk 0:07:48.2]}
17. Qd2 {[%clk 0:08:21]} 17... f5 {[%clk 0:07:15.8]} 18. exf5 {[%clk 0:07:55.8]}
18... Bxf5 {[%clk 0:07:17.7]} 19. bxc5 {[%clk 0:07:48.8]} 19... dxc5 {[%clk
0:07:14.9]} 20. e3 {[%clk 0:07:50.1]} 20... Rad8 {[%clk 0:05:22]} 21. exd4
{[%clk 0:07:23.2]} 21... cxd4 {[%clk 0:05:22.7]} 22. Rfe1 {[%clk 0:07:03.7]}
22... Kh7 {[%clk 0:05:08]} 23. Bd5 {[%clk 0:05:51]} 23... d3 {[%clk 0:04:23.6]}
24. f4 {[%clk 0:05:52.1]} 24... Rfe8 {[%clk 0:03:24.5]} 25. g4 {[%clk
0:05:32.5]} 25... Bg6 {[%clk 0:02:53.6]} 26. f5 {[%clk 0:05:26.8]} 26... Bf7
{[%clk 0:02:19.5]} 27. Qxd3 {[%clk 0:04:19.7]} 27... Bxd5 {[%clk 0:01:39.8]} 28.
cxd5 {[%clk 0:03:37.9]} 28... Bb8+ {[%clk 0:01:19]} 29. Kg2 {[%clk 0:01:26.1]}
29... Qd6 {[%clk 0:01:10.7]} 30. f6+ {[%clk 0:01:26.8]} 30... Kg8 {[%clk
0:01:08.7]} 31. Rxe8+ {[%clk 0:00:57.2]} 31... Rxe8 {[%clk 0:01:09.9]} 32. Qf3
{[%clk 0:00:58.5]} 32... Qh2+ {[%clk 0:00:47.6]} 33. Kf1 {[%clk 0:00:59.6]}
33... gxf6 {[%clk 0:00:48.6]} 34. Bd4 {[%clk 0:00:34.4]} 34... Be5 {[%clk
0:00:22.3]} 35. Be3 {[%clk 0:00:28.1]} 35... Bg3 {[%clk 0:00:19.7]} 36. Bg1
{[%clk 0:00:04.4]} 36... Qxh3+ {[%clk 0:00:19.9]} 37. Qg2 {[%clk 0:00:06.1]}
37... Qxg4 {[%clk 0:00:18.1]} 38. d6 {[%clk 0:00:06.8]} 38... Qf4+ {[%clk
0:00:14.4]} 39. Bf2 {[%clk 0:00:08.2]} 39... Qxc1+ {[%clk 0:00:15.6]} 0-1

[Event "GrandPrix_29.05"]
[Site "Chess.com"]
[Date "2020.05.29"]
[Round "6"]
[White "Yaroslav_Remizov"]
[Black "ftorodent"]
[Result "1-0"]
[WhiteElo "2141"]
[BlackElo "2084"]
[TimeControl "600+2"]
[EndTime "12:02:23 PDT"]
[Termination "Yaroslav_Remizov won by resignation"]

1. e4 {[%clk 0:09:56.2]} 1... c5 {[%clk 0:09:59.7]} 2. Nf3 {[%clk 0:09:57]} 2...
e6 {[%clk 0:10:00]} 3. d4 {[%clk 0:09:58.4]} 3... cxd4 {[%clk 0:10:01.1]} 4.
Nxd4 {[%clk 0:10:00.3]} 4... a6 {[%clk 0:10:02.3]} 5. c4 {[%clk 0:10:01.3]} 5...
Nf6 {[%clk 0:10:01.2]} 6. Nc3 {[%clk 0:10:02.7]} 6... d6 {[%clk 0:10:02.1]} 7.
g3 {[%clk 0:09:52.6]} 7... Be7 {[%clk 0:09:56.9]} 8. Bg2 {[%clk 0:09:53.3]} 8...
O-O {[%clk 0:09:56.2]} 9. O-O {[%clk 0:09:53.9]} 9... Qc7 {[%clk 0:09:56.9]} 10.
Qe2 {[%clk 0:09:44.6]} 10... Nc6 {[%clk 0:09:45.5]} 11. Be3 {[%clk 0:09:44.7]}
11... Ne5 {[%clk 0:09:13.4]} 12. Rac1 {[%clk 0:09:40.4]} 12... Rb8 {[%clk
0:09:03.5]} 13. h3 {[%clk 0:09:06]} 13... b6 {[%clk 0:08:04.1]} 14. f4 {[%clk
0:08:36.6]} 14... Ng6 {[%clk 0:08:03.9]} 15. Rfd1 {[%clk 0:06:46]} 15... Re8
{[%clk 0:08:02.1]} 16. e5 {[%clk 0:06:32]} 16... dxe5 {[%clk 0:07:59.6]} 17.
Ndb5 {[%clk 0:06:32.6]} 17... axb5 {[%clk 0:07:30.3]} 18. Nxb5 {[%clk
0:06:34.5]} 18... Qd7 {[%clk 0:07:23.3]} 19. Rxd7 {[%clk 0:05:52.3]} 19... Nxd7
{[%clk 0:07:10.4]} 20. fxe5 {[%clk 0:05:31.9]} 20... Ndxe5 {[%clk 0:07:07.8]}
21. h4 {[%clk 0:05:25.8]} 21... h5 {[%clk 0:04:52.4]} 22. Qxh5 {[%clk
0:05:14.1]} 22... Bd7 {[%clk 0:04:29]} 23. Qe2 {[%clk 0:05:01]} 23... Rbc8
{[%clk 0:04:17.6]} 24. Na7 {[%clk 0:04:20.6]} 24... Ra8 {[%clk 0:03:42]} 25.
Bxa8 {[%clk 0:04:14.7]} 25... Rxa8 {[%clk 0:03:40.6]} 26. Bxb6 {[%clk
0:04:13.1]} 26... Nc6 {[%clk 0:03:25.8]} 27. Nxc6 {[%clk 0:03:17.7]} 27... Bxc6
{[%clk 0:03:26.2]} 28. b3 {[%clk 0:03:18.9]} 28... Bf6 {[%clk 0:03:25.4]} 29. b4
{[%clk 0:02:27.4]} 29... Ne5 {[%clk 0:03:16.8]} 30. b5 {[%clk 0:02:24.9]} 30...
Bf3 {[%clk 0:03:06.5]} 31. Qe3 {[%clk 0:01:58.5]} 31... Rxa2 {[%clk 0:03:04.6]}
32. Qf4 {[%clk 0:00:20.1]} 32... Bb7 {[%clk 0:02:34.9]} 33. Bf2 {[%clk
0:00:11.2]} 33... Nf3+ {[%clk 0:02:29.6]} 34. Kf1 {[%clk 0:00:11]} 34... Nh2+
{[%clk 0:02:27.6]} 35. Kg1 {[%clk 0:00:06.5]} 35... Nf3+ {[%clk 0:02:28.2]} 36.
Kg2 {[%clk 0:00:07.2]} 36... Be5 {[%clk 0:01:53.4]} 37. Qxf3 {[%clk 0:00:07.6]}
37... Bxf3+ {[%clk 0:01:51.7]} 38. Kxf3 {[%clk 0:00:09.5]} 38... Ra3+ {[%clk
0:01:46]} 39. Kg2 {[%clk 0:00:08]} 39... Ra2 {[%clk 0:01:45.9]} 40. Kf1 {[%clk
0:00:05.6]} 40... f5 {[%clk 0:01:08.1]} 41. c5 {[%clk 0:00:05.6]} 41... f4
{[%clk 0:01:09]} 42. gxf4 {[%clk 0:00:06.2]} 42... Bxf4 {[%clk 0:01:09.9]} 43.
Rb1 {[%clk 0:00:07.5]} 43... e5 {[%clk 0:01:00.8]} 44. b6 {[%clk 0:00:07.9]}
44... e4 {[%clk 0:01:02]} 45. b7 {[%clk 0:00:08.8]} 45... Bb8 {[%clk 0:01:02.9]}
46. Rd1 {[%clk 0:00:07.8]} 46... Bf4 {[%clk 0:00:48.2]} 47. Rd8+ {[%clk
0:00:07.4]} 1-0

[Event "GrandPrix_29.05"]
[Site "Chess.com"]
[Date "2020.05.29"]
[Round "6"]
[White "AbasovN"]
[Black "GadimbayliA"]
[Result "0-1"]
[WhiteElo "2279"]
[BlackElo "2515"]
[TimeControl "600+2"]
[EndTime "12:02:25 PDT"]
[Termination "GadimbayliA won on time"]

1. e4 {[%clk 0:09:23.7]} 1... e5 {[%clk 0:09:59.2]} 2. Nf3 {[%clk 0:09:24]} 2...
d5 {[%clk 0:10:00.2]} 3. exd5 {[%clk 0:09:03.4]} 3... e4 {[%clk 0:10:02.1]} 4.
Qe2 {[%clk 0:09:04.6]} 4... Nf6 {[%clk 0:10:03.1]} 5. Nc3 {[%clk 0:09:05.3]}
5... Be7 {[%clk 0:10:04.3]} 6. Nxe4 {[%clk 0:09:05.7]} 6... O-O {[%clk
0:10:05.5]} 7. d3 {[%clk 0:09:01.4]} 7... Nxd5 {[%clk 0:10:06.1]} 8. Qd1 {[%clk
0:08:56.9]} 8... f5 {[%clk 0:09:24.2]} 9. Nc3 {[%clk 0:08:56.2]} 9... Nxc3
{[%clk 0:08:34.2]} 10. bxc3 {[%clk 0:08:58.1]} 10... Bf6 {[%clk 0:08:36.1]} 11.
d4 {[%clk 0:08:55.2]} 11... Re8+ {[%clk 0:08:38]} 12. Be2 {[%clk 0:08:56.3]}
12... Qe7 {[%clk 0:08:38.3]} 13. Be3 {[%clk 0:08:51.7]} 13... Kh8 {[%clk
0:08:32]} 14. Qd2 {[%clk 0:08:47.4]} 14... Bd7 {[%clk 0:08:27]} 15. Rb1 {[%clk
0:07:36.8]} 15... b6 {[%clk 0:07:42.7]} 16. g3 {[%clk 0:06:25.2]} 16... Nc6
{[%clk 0:06:22.2]} 17. O-O {[%clk 0:06:13.1]} 17... f4 {[%clk 0:05:52.9]} 18.
gxf4 {[%clk 0:06:15]} 18... Rad8 {[%clk 0:05:54.3]} 19. Rfe1 {[%clk 0:06:02.4]}
19... Qf7 {[%clk 0:05:40]} 20. Qd3 {[%clk 0:05:27.4]} 20... Be6 {[%clk
0:05:10.5]} 21. c4 {[%clk 0:05:12.3]} 21... Nxd4 {[%clk 0:02:18.6]} 22. Nxd4
{[%clk 0:04:00.3]} 22... c5 {[%clk 0:02:18.1]} 23. c3 {[%clk 0:04:01.8]} 23...
cxd4 {[%clk 0:02:19.4]} 24. cxd4 {[%clk 0:04:03.7]} 24... Bxd4 {[%clk
0:02:20.9]} 25. Bxd4 {[%clk 0:04:04]} 25... Bf5 {[%clk 0:02:21.9]} 26. Bh5
{[%clk 0:03:00.1]} 26... Qxh5 {[%clk 0:01:59.4]} 27. Rxe8+ {[%clk 0:02:57.8]}
27... Rxe8 {[%clk 0:01:31.2]} 28. Qg3 {[%clk 0:02:58.1]} 28... Qf7 {[%clk
0:01:32.3]} 29. Rd1 {[%clk 0:02:50.1]} 29... h6 {[%clk 0:01:22.3]} 30. Be5
{[%clk 0:01:40.9]} 30... Re6 {[%clk 0:01:19.5]} 31. Qc3 {[%clk 0:01:42.4]} 31...
Rg6+ {[%clk 0:01:17.1]} 32. Kf1 {[%clk 0:01:43.8]} 32... Rc6 {[%clk 0:00:57.6]}
33. Rd4 {[%clk 0:01:34.2]} 33... Rc8 {[%clk 0:00:32.4]} 34. a4 {[%clk
0:01:25.6]} 34... Be6 {[%clk 0:00:28.7]} 35. Ke1 {[%clk 0:01:20.9]} 35... Bxc4
{[%clk 0:00:24.5]} 36. Rd6 {[%clk 0:01:17.6]} 36... Be6 {[%clk 0:00:20.4]} 37.
Qd3 {[%clk 0:01:04.3]} 37... Bf5 {[%clk 0:00:10.6]} 38. Qd4 {[%clk 0:00:49.9]}
38... Kh7 {[%clk 0:00:11.7]} 0-1